[Event "EYTCC U18 Girls 2019"]
[Site "Pardubice"]
[Date "2019.07.17"]
[Round "7.37"]
[White "Kucharska, Honorata"]
[Black "Bogdanic, Katarina"]
[Result "1-0"]
[ECO "B41"]
[WhiteElo "2054"]
[BlackElo "1955"]
[Annotator "NA"]
[PlyCount "97"]
[EventDate "2019.07.11"]
[EventType "swiss"]
[EventCountry "CZE"]
[SourceTitle "playchess.com"]
[Source "ChessBase"]
[SourceQuality "1"]
[WhiteTeam "Poland"]
[BlackTeam "Croatia"]
[WhiteTeamCountry "POL"]
[BlackTeamCountry "CRO"]
[TimeControl "40/5400+30:1800+30"]

1. e4 {[%emt 0:00:00]} c5 {[%emt 0:00:00]} 2. Nf3 {[%emt 0:00:00]} e6 {[%emt 0:00:00]} 3. d4 {[%emt 0:00:00]} cxd4 {[%emt 0:00:00]} 4. Nxd4 {[%emt 0:00:01]} a6 {[%emt 0:00:00]} 5. c4 {[%emt 0:00:06]} Nf6 {[%emt 0:00:56]} 6. Nc3 {[%emt 0:00:05]} Qc7 {[%emt 0:00:13]} 7. a3 {[%emt 0:00:39]} b6 {[%emt 0:01:07]} 8. Be2 {[%emt 0:00:58]} Bb7 {[%emt 0:00:35]} 9. f3 {[%emt 0:00:37]} Be7 {[%emt 0:01:19]} 10. O-O {[%emt 0:01:01]} O-O {[%emt 0:00:30]} 11. Be3 {[%emt 0:01:05]} d6 {[%emt 0:00:28]} 12. Rc1 {[%emt 0:00:49]} Nbd7 {[%emt 0:00:38]} 13. Qe1 {[%emt 0:02:08]} Rac8 {[%emt 0:02:17]} 14. Qf2 {[%emt 0:03:33]} Qb8 {[%emt 0:00:49]} 15. g4 {[%emt 0:04:56]} Ne5 {[%emt 0:07:57]} 16. g5 {[%emt 0:04:22]} Nfd7 {[%emt 0:00:25]} 17. b3 {[%emt 0:01:15]} Nc6 {[%emt 0:05:56]} 18. Qg2 {[%emt 0:12:05]} Nxd4 {[%emt 0:05:22]} 19. Bxd4 {[%emt 0:00:09]} d5 {[%emt 0:13:32]} 20. exd5 {[%emt 0:05:35]} exd5 {[%emt 0:06:49]} 21. Qg4 {[%emt 0:05:14]} Ne5 {[%emt 0:07:17]} 22. Qf5 {[%emt 0:04:00]} Ng6 {[%emt 0:05:58]} 23. Nxd5 {[%emt 0:07:07]} Bxd5 {[%emt 0:00:45]} 24. cxd5 {[%emt 0:00:21]} Rxc1 {[%emt 0:00:37]} 25. Rxc1 {[%emt 0:00:27]} Bxa3 {[%emt 0:00:45]} 26. Rc2 {[%emt 0:04:52]} a5 {[%emt 0:00:59]} 27. Bb5 {[%emt 0:10:42]} Bd6 {[%emt 0:04:37]} 28. Re2 {[%emt 0:05:32]} Qc7 {[%emt 0:01:43]} 29. Bc6 {[%emt 0:02:49]} Bf4 {[%emt 0:05:56]} 30. Qg4 {[%emt 0:06:38]} Bd6 {[%emt 0:07:27]} 31. h4 {[%emt 0:04:48]} Nf4 {[%emt 0:01:48]} 32. Re4 {[%emt 0:02:32]} Nd3 {[%emt 0:01:50]} 33. Kf1 {[%emt 0:01:46]} Bc5 {[%emt 0:02:30]} 34. f4 {[%emt 0:01:45]} Bxd4 {[%emt 0:01:53]} 35. Rxd4 {[%emt 0:00:07]} Nc5 {[%emt 0:00:10]} 36. Qf3 {[%emt 0:00:27]} Qd6 {[%emt 0:02:40]} 37. f5 {[%emt 0:03:23]} Qe5 {[%emt 0:02:22]} 38. Qf4 {[%emt 0:00:57]} f6 {[%emt 0:02:05]} 39. d6 {[%emt 0:01:01]} Qxf4+ {[%emt 0:02:27]} 40. Rxf4 {[%emt 0:00:04]} Rd8 {[%emt 0:02:06]} 41. Rd4 {[%emt 0:31:18]} Kf8 {[%emt 0:30:31]} 42. g6 {[%emt 0:01:50]} hxg6 {[%emt 0:02:27]} 43. fxg6 {[%emt 0:00:05]} Nxb3 {[%emt 0:00:00]} 44. Rd1 {[%emt 0:00:00]} Nc5 {[%emt 0:00:00]} 45. h5 {[%emt 0:00:00]} a4 {[%emt 0:00:00]} 46. Re1 {[%emt 0:00:00]} a3 {[%emt 0:00:00]} 47. Re7 {[%emt 0:00:00]} Nd3 {[%emt 0:00:00]} 48. h6 {[%emt 0:00:00]} gxh6 {[%emt 0:00:00]} 49. g7+ {[%emt 0:00:00]} 1-0

[Event "EYTCC U18 Girls 2019"]
[Site "Pardubice"]
[Date "2019.07.17"]
[Round "7.38"]
[White "Koksa, Jelena"]
[Black "Malicka, Maria"]
[Result "0-1"]
[ECO "C45"]
[WhiteElo "1781"]
[BlackElo "2115"]
[Annotator "ChessBase"]
[PlyCount "110"]
[EventDate "2019.07.11"]
[EventType "swiss"]
[EventCountry "CZE"]
[SourceTitle "playchess.com"]
[Source "ChessBase"]
[SourceQuality "1"]
[WhiteTeam "Croatia"]
[BlackTeam "Poland"]
[WhiteTeamCountry "CRO"]
[BlackTeamCountry "POL"]
[TimeControl "40/5400+30:1800+30"]

1. e4 {[%emt 0:00:00]} e5 {[%emt 0:00:00]} 2. Nf3 {[%emt 0:00:00]} Nc6 {[%emt 0:00:00]} 3. d4 {[%emt 0:00:00]} exd4 {[%emt 0:00:00]} 4. Nxd4 {[%emt 0:00:00]} Bc5 {[%emt 0:00:00]} 5. Nxc6 {[%emt 0:00:00]} bxc6 {[%emt 0:00:00]} 6. Bd3 {[%emt 0:00:03]} Qh4 {[%emt 0:00:35]} 7. O-O {[%emt 0:06:15]} Nf6 {[%emt 0:00:40]} 8. Qf3 {[%emt 0:05:39]} O-O {[%emt 0:11:35]} 9. Bf4 {[%emt 0:05:45]} d6 {[%emt 0:02:18]} 10. h3 {[%emt 0:04:41]} Rb8 {[%emt 0:04:53]} 11. b3 {[%emt 0:04:34]} Re8 {[%emt 0:05:24]} 12. c3 {[%emt 0:01:37]} a5 {[%emt 0:06:31]} 13. Nd2 {[%emt 0:02:42]} Be6 {[%emt 0:02:16]} 14. Bc2 {[%emt 0:21:25]} Nd7 {[%emt 0:10:13]} 15. Bg3 {[%emt 0:03:25]} Qg5 {[%emt 0:01:20]} 16. Bf4 {[%emt 0:01:05]} Qf6 {[%emt 0:00:30]} 17. Qg3 {[%emt 0:01:57]} Ne5 {[%emt 0:05:45]} 18. Kh1 {[%emt 0:02:06]} h6 {[%emt 0:03:19]} 19. Bxe5 {[%emt 0:02:16]} dxe5 {[%emt 0:06:19]} 20. f4 {[%emt 0:09:06]} exf4 {[%emt 0:00:29]} 21. Rxf4 {[%emt 0:00:23]} Bd6 {[%emt 0:07:48]} 22. Rxf6 {[%emt 0:00:05]} Bxg3 {[%emt 0:00:03]} 23. Rf3 {[%emt 0:00:14]} Be5 {[%emt 0:00:08]} 24. Rd1 {[%emt 0:05:17]} Red8 {[%emt 0:01:34]} 25. c4 {[%emt 0:01:18]} Kf8 {[%emt 0:06:46]} 26. Rd3 {[%emt 0:01:39]} Rxd3 {[%emt 0:00:41]} 27. Bxd3 {[%emt 0:00:01]} Rd8 {[%emt 0:00:54]} 28. Nf3 {[%emt 0:00:07]} Bc3 {[%emt 0:00:24]} 29. Bc2 {[%emt 0:00:32]} Rxd1+ {[%emt 0:01:35]} 30. Bxd1 {[%emt 0:00:03]} Ke7 {[%emt 0:00:36]} 31. Kg1 {[%emt 0:00:07]} Kd6 {[%emt 0:00:46]} 32. Kf2 {[%emt 0:01:50]} f5 {[%emt 0:05:52]} 33. Bc2 {[%emt 0:04:22]} f4 {[%emt 0:00:34]} 34. Ke2 {[%emt 0:00:56]} g5 {[%emt 0:02:56]} 35. Kd3 {[%emt 0:00:34]} Bf6 {[%emt 0:00:28]} 36. Nd4 {[%emt 0:11:29]} Bxd4 {[%emt 0:00:39]} 37. Kxd4 {[%emt 0:00:01]} c5+ {[%emt 0:00:06]} 38. Kd3 {[%emt 0:00:15]} Ke5 {[%emt 0:01:22]} 39. Bd1 {[%emt 0:01:17]} Bf7 {[%emt 0:00:24]} 40. Be2 {[%emt 0:01:35]} Bg6 {[%emt 0:00:17]} 41. Bf3 {[%emt 0:30:18]} Bh7 {[%emt 0:32:16]} 42. a4 {[%emt 0:01:11]} c6 {[%emt 0:02:26]} 43. g4 {[%emt 0:02:08]} fxg3 {[%emt 0:00:03]} 44. Ke3 {[%emt 0:00:03]} Bg6 {[%emt 0:00:09]} 45. Kd3 {[%emt 0:03:33]} Kf4 {[%emt 0:00:36]} 46. Bg2 {[%emt 0:00:00]} h5 {[%emt 0:00:00]} 47. Bh1 {[%emt 0:00:00]} h4 {[%emt 0:00:00]} 48. Bg2 {[%emt 0:00:00]} g4 {[%emt 0:00:00]} 49. hxg4 {[%emt 0:00:00]} Kxg4 {[%emt 0:00:00]} 50. Ke3 {[%emt 0:00:00]} h3 {[%emt 0:00:00]} 51. Bf3+ {[%emt 0:00:00]} Kg5 {[%emt 0:00:00]} 52. e5 {[%emt 0:00:00]} g2 {[%emt 0:00:00]} 53. Kf2 {[%emt 0:00:00]} Kf5 {[%emt 0:00:00]} 54. Bxc6 {[%emt 0:00:00]} Kxe5 {[%emt 0:00:00]} 55. Bd7 {[%emt 0:00:00]} Bf5 {[%emt 0:00:00]} 0-1

[Event "EYTCC U18 Girls 2019"]
[Site "Pardubice"]
[Date "2019.07.17"]
[Round "7.39"]
[White "Kuhar, Larisa"]
[Black "Stroganova, Karina"]
[Result "0-1"]
[ECO "C60"]
[WhiteElo "1894"]
[BlackElo "1875"]
[Annotator "NA"]
[PlyCount "100"]
[EventDate "2019.07.11"]
[EventType "swiss"]
[EventCountry "CZE"]
[SourceTitle "playchess.com"]
[Source "ChessBase"]
[SourceQuality "1"]
[WhiteTeam "Slovenia"]
[BlackTeam "Russia"]
[WhiteTeamCountry "SLO"]
[BlackTeamCountry "RUS"]
[TimeControl "40/5400+30:1800+30"]

1. e4 {[%emt 0:00:00]} e5 {[%emt 0:00:00]} 2. Nf3 {[%emt 0:00:00]} Nc6 {[%emt 0:00:00]} 3. Bb5 {[%emt 0:00:00]} Nge7 {[%emt 0:00:00]} 4. O-O {[%emt 0:00:31]} g6 {[%emt 0:00:11]} 5. c3 {[%emt 0:03:44]} Bg7 {[%emt 0:00:36]} 6. d4 {[%emt 0:00:46]} exd4 {[%emt 0:00:42]} 7. cxd4 {[%emt 0:00:23]} a6 {[%emt 0:00:31]} 8. Ba4 {[%emt 0:08:06]} b5 {[%emt 0:02:07]} 9. Bc2 {[%emt 0:01:38]} O-O {[%emt 0:01:41]} 10. h3 {[%emt 0:06:27]} Na5 {[%emt 0:07:28]} 11. Nbd2 {[%emt 0:10:13]} d6 {[%emt 0:03:08]} 12. a4 {[%emt 0:05:13]} c5 {[%emt 0:01:44]} 13. axb5 {[%emt 0:11:08]} axb5 {[%emt 0:00:24]} 14. e5 {[%emt 0:01:53]} Bb7 {[%emt 0:05:05]} 15. exd6 {[%emt 0:08:23]} Qxd6 {[%emt 0:03:25]} 16. Ne4 {[%emt 0:06:00]} Bxe4 {[%emt 0:03:49]} 17. Bxe4 {[%emt 0:00:02]} Nac6 {[%emt 0:00:25]} 18. Rxa8 {[%emt 0:02:47]} Rxa8 {[%emt 0:00:10]} 19. dxc5 {[%emt 0:05:50]} Qxc5 {[%emt 0:00:31]} 20. Be3 {[%emt 0:06:07]} Qb4 {[%emt 0:01:48]} 21. Bxc6 {[%emt 0:04:00]} Nxc6 {[%emt 0:00:10]} 22. Qd7 {[%emt 0:00:12]} Ne5 {[%emt 0:11:17]} 23. Nxe5 {[%emt 0:00:48]} Bxe5 {[%emt 0:00:07]} 24. Qd5 {[%emt 0:01:41]} Re8 {[%emt 0:00:21]} 25. b3 {[%emt 0:00:21]} Bg7 {[%emt 0:01:47]} 26. Rc1 {[%emt 0:01:47]} h5 {[%emt 0:02:56]} 27. Qc6 {[%emt 0:07:14]} Re6 {[%emt 0:04:46]} 28. Qc2 {[%emt 0:02:53]} Kh7 {[%emt 0:01:34]} 29. Rd1 {[%emt 0:01:35]} Be5 {[%emt 0:02:24]} 30. Bd2 {[%emt 0:01:38]} Qh4 {[%emt 0:04:43]} 31. Be3 {[%emt 0:01:22]} b4 {[%emt 0:05:24]} 32. Rd7 {[%emt 0:01:14]} Kg7 {[%emt 0:02:29]} 33. Rd5 {[%emt 0:01:43]} Qf6 {[%emt 0:04:48]} 34. Qd3 {[%emt 0:00:21]} Ra6 {[%emt 0:04:00]} 35. g3 {[%emt 0:00:55]} Qc6 {[%emt 0:03:17]} 36. Qe4 {[%emt 0:00:33]} Bf6 {[%emt 0:01:07]} 37. Qg2 {[%emt 0:00:27]} Qc3 {[%emt 0:01:20]} 38. Rc5 {[%emt 0:00:32]} Qxb3 {[%emt 0:00:29]} 39. Qb7 {[%emt 0:00:31]} Ra1+ {[%emt 0:01:02]} 40. Kh2 {[%emt 0:00:28]} Qd1 {[%emt 0:00:44]} 41. h4 {[%emt 0:11:04]} b3 {[%emt 0:01:26]} 42. Rc7 {[%emt 0:07:06]} Qg1+ {[%emt 0:00:26]} 43. Kh3 {[%emt 0:00:06]} Qh1+ {[%emt 0:00:24]} 44. Qxh1 {[%emt 0:00:10]} Rxh1+ {[%emt 0:00:04]} 45. Kg2 {[%emt 0:00:08]} b2 {[%emt 0:00:43]} 46. Kxh1 {[%emt 0:00:19]} b1=Q+ {[%emt 0:00:09]} 47. Kh2 {[%emt 0:00:21]} Qe4 {[%emt 0:02:04]} 48. Rd7 {[%emt 0:01:23]} Be5 {[%emt 0:01:17]} 49. Ra7 {[%emt 0:01:58]} Qxh4+ {[%emt 0:00:19]} 50. Kg2 {[%emt 0:00:16]} Qe4+ {[%emt 0:00:13]} 0-1

[Event "EYTCC U18 Girls 2019"]
[Site "Pardubice"]
[Date "2019.07.17"]
[Round "7.40"]
[White "Beliakova, Ilona"]
[Black "Kralj, Nika"]
[Result "0-1"]
[ECO "E04"]
[WhiteElo "1759"]
[BlackElo "1807"]
[Annotator "NA"]
[PlyCount "114"]
[EventDate "2019.07.11"]
[EventType "swiss"]
[EventCountry "CZE"]
[SourceTitle "playchess.com"]
[Source "ChessBase"]
[SourceQuality "1"]
[WhiteTeam "Russia"]
[BlackTeam "Slovenia"]
[WhiteTeamCountry "RUS"]
[BlackTeamCountry "SLO"]
[TimeControl "40/5400+30:1800+30"]

1. d4 {[%emt 0:00:00]} d5 {[%emt 0:00:00]} 2. c4 {[%emt 0:00:00]} e6 {[%emt 0:00:00]} 3. Nf3 {[%emt 0:00:23]} Nf6 {[%emt 0:00:00]} 4. g3 {[%emt 0:01:22]} dxc4 {[%emt 0:00:05]} 5. Bg2 {[%emt 0:00:32]} Bb4+ {[%emt 0:01:12]} 6. Bd2 {[%emt 0:02:18]} Bxd2+ {[%emt 0:00:33]} 7. Nbxd2 {[%emt 0:00:14]} O-O {[%emt 0:04:51]} 8. Nxc4 {[%emt 0:01:20]} Qe7 {[%emt 0:05:42]} 9. O-O {[%emt 0:01:38]} Nbd7 {[%emt 0:00:13]} 10. Rc1 {[%emt 0:07:27]} c5 {[%emt 0:01:39]} 11. Qc2 {[%emt 0:02:08]} cxd4 {[%emt 0:02:17]} 12. Nxd4 {[%emt 0:00:22]} Rb8 {[%emt 0:00:57]} 13. Rfd1 {[%emt 0:03:54]} a6 {[%emt 0:02:29]} 14. a3 {[%emt 0:07:54]} g6 {[%emt 0:03:50]} 15. Na5 {[%emt 0:02:01]} Nb6 {[%emt 0:03:58]} 16. Qb3 {[%emt 0:03:46]} Nbd7 {[%emt 0:06:59]} 17. Qc2 {[%emt 0:05:00]} Nb6 {[%emt 0:00:55]} 18. Qb3 {[%emt 0:26:49]} Nbd7 {[%emt 0:06:06]} 19. Qc3 {[%emt 0:07:17]} e5 {[%emt 0:02:51]} 20. Ndc6 {[%emt 0:01:54]} bxc6 {[%emt 0:00:43]} 21. Nxc6 {[%emt 0:00:05]} Qe8 {[%emt 0:07:08]} 22. Nxb8 {[%emt 0:00:13]} Nxb8 {[%emt 0:00:01]} 23. Qc7 {[%emt 0:01:27]} Bf5 {[%emt 0:00:52]} 24. Rd6 {[%emt 0:03:18]} Ne4 {[%emt 0:02:04]} 25. Bxe4 {[%emt 0:01:46]} Bxe4 {[%emt 0:00:02]} 26. f3 {[%emt 0:00:42]} Bf5 {[%emt 0:01:04]} 27. Rcd1 {[%emt 0:00:13]} Qb5 {[%emt 0:01:00]} 28. R1d2 {[%emt 0:00:42]} Bh3 {[%emt 0:22:01]} 29. R6d5 {[%emt 0:04:17]} Qb3 {[%emt 0:02:18]} 30. Qxe5 {[%emt 0:01:47]} Nc6 {[%emt 0:00:55]} 31. Qf6 {[%emt 0:00:43]} Qb6+ {[%emt 0:01:17]} 32. R5d4 {[%emt 0:03:00]} Qc5 {[%emt 0:01:04]} 33. Kf2 {[%emt 0:06:08]} Nxd4 {[%emt 0:02:03]} 34. Qxd4 {[%emt 0:00:16]} Qxd4+ {[%emt 0:00:33]} 35. Rxd4 {[%emt 0:00:06]} Be6 {[%emt 0:00:09]} 36. Ra4 {[%emt 0:00:27]} Ra8 {[%emt 0:03:02]} 37. Ke3 {[%emt 0:00:30]} Kf8 {[%emt 0:00:37]} 38. Kd4 {[%emt 0:00:27]} Rd8+ {[%emt 0:05:16]} 39. Kc3 {[%emt 0:02:27]} Rc8+ {[%emt 0:01:22]} 40. Kd3 {[%emt 0:00:52]} Ke7 {[%emt 0:01:19]} 41. e4 {[%emt 0:30:28]} Bb3 {[%emt 0:38:37]} 42. Rb4 {[%emt 0:00:15]} Bd1 {[%emt 0:00:00]} 43. Rb7+ {[%emt 0:00:00]} Ke8 {[%emt 0:00:00]} 44. f4 {[%emt 0:00:00]} Bc2+ {[%emt 0:00:00]} 45. Ke3 {[%emt 0:00:00]} a5 {[%emt 0:00:00]} 46. Kd4 {[%emt 0:00:00]} a4 {[%emt 0:00:00]} 47. Ke5 {[%emt 0:00:00]} Rc6 {[%emt 0:00:00]} 48. Kd5 {[%emt 0:00:00]} Re6 {[%emt 0:00:00]} 49. e5 {[%emt 0:00:00]} Bb3+ {[%emt 0:00:00]} 50. Kc5 {[%emt 0:00:00]} Re7 {[%emt 0:00:00]} 51. Rb8+ {[%emt 0:00:00]} Kd7 {[%emt 0:00:00]} 52. Rb7+ {[%emt 0:00:00]} Kd8 {[%emt 0:00:00]} 53. Rb6 {[%emt 0:00:00]} Rc7+ {[%emt 0:00:00]} 54. Kd6 {[%emt 0:00:00]} Rd7+ {[%emt 0:00:00]} 55. Kc5 {[%emt 0:00:00]} Rd2 {[%emt 0:00:00]} 56. Rd6+ {[%emt 0:00:00]} Rxd6 {[%emt 0:00:00]} 57. Kxd6 {[%emt 0:00:00]} Be6 0-1

[Event "EYTCC U18 Girls 2019"]
[Site "Pardubice"]
[Date "2019.07.17"]
[Round "7.41"]
[White "Jaufarally, Nadia"]
[Black "Kopcova, Ludmila"]
[Result "1-0"]
[ECO "C42"]
[WhiteElo "1944"]
[BlackElo "1980"]
[Annotator "NA"]
[PlyCount "137"]
[EventDate "2019.07.11"]
[EventType "swiss"]
[EventCountry "CZE"]
[SourceTitle "playchess.com"]
[Source "ChessBase"]
[SourceQuality "1"]
[WhiteTeam "England"]
[BlackTeam "Czech Republic"]
[WhiteTeamCountry "ENG"]
[BlackTeamCountry "CZE"]
[TimeControl "40/5400+30:1800+30"]

1. e4 {[%emt 0:00:00]} e5 {[%emt 0:00:00]} 2. Nf3 {[%emt 0:00:00]} Nf6 {[%emt 0:00:00]} 3. Nxe5 {[%emt 0:00:00]} d6 {[%emt 0:00:00]} 4. Nf3 {[%emt 0:00:00]} Nxe4 {[%emt 0:00:00]} 5. Nc3 {[%emt 0:00:00]} Nxc3 {[%emt 0:00:02]} 6. dxc3 {[%emt 0:00:09]} Be7 {[%emt 0:00:10]} 7. Be3 {[%emt 0:00:05]} O-O {[%emt 0:00:10]} 8. Qd2 {[%emt 0:00:10]} Nd7 {[%emt 0:01:08]} 9. O-O-O {[%emt 0:04:52]} c6 {[%emt 0:05:31]} 10. Kb1 {[%emt 0:06:38]} d5 {[%emt 0:04:59]} 11. c4 {[%emt 0:13:51]} Nf6 {[%emt 0:13:16]} 12. cxd5 {[%emt 0:08:34]} Nxd5 {[%emt 0:00:40]} 13. Bc4 {[%emt 0:09:10]} Nxe3 {[%emt 0:16:00]} 14. Qxe3 {[%emt 0:02:00]} Qc7 {[%emt 0:02:13]} 15. Rhe1 {[%emt 0:03:45]} Bf6 {[%emt 0:03:29]} 16. Ng5 {[%emt 0:03:21]} Bxg5 {[%emt 0:02:52]} 17. Qxg5 {[%emt 0:00:27]} h6 {[%emt 0:08:25]} 18. Re7 {[%emt 0:23:23]} hxg5 {[%emt 0:04:29]} 19. Rxc7 {[%emt 0:00:07]} Be6 {[%emt 0:01:22]} 20. Bxe6 {[%emt 0:04:02]} fxe6 {[%emt 0:00:21]} 21. f3 {[%emt 0:02:55]} Rad8 {[%emt 0:03:16]} 22. Rxd8 {[%emt 0:03:25]} Rxd8 {[%emt 0:00:01]} 23. Kc1 {[%emt 0:00:14]} Rf8 {[%emt 0:01:44]} 24. Rxb7 {[%emt 0:00:34]} g4 {[%emt 0:00:19]} 25. Rb3 {[%emt 0:03:47]} e5 {[%emt 0:03:53]} 26. Re3 {[%emt 0:02:39]} gxf3 {[%emt 0:01:12]} 27. Rxf3 {[%emt 0:01:33]} Rd8 {[%emt 0:00:17]} 28. Rd3 {[%emt 0:01:21]} Rf8 {[%emt 0:00:26]} 29. Kd1 {[%emt 0:01:06]} Rf2 {[%emt 0:01:27]} 30. Rd2 {[%emt 0:00:12]} Rf1+ {[%emt 0:00:14]} 31. Ke2 {[%emt 0:00:10]} Ra1 {[%emt 0:00:31]} 32. a3 {[%emt 0:00:32]} Ra2 {[%emt 0:00:31]} 33. c3 {[%emt 0:00:29]} Kf7 {[%emt 0:00:15]} 34. Ke3 {[%emt 0:00:07]} Ke6 {[%emt 0:00:07]} 35. Kd3 {[%emt 0:01:25]} Ra1 {[%emt 0:00:47]} 36. Re2 {[%emt 0:00:57]} Rd1+ {[%emt 0:01:24]} 37. Kc4 {[%emt 0:01:21]} Rd5 {[%emt 0:00:45]} 38. b4 {[%emt 0:01:11]} Kf5 {[%emt 0:00:44]} 39. a4 {[%emt 0:02:05]} a6 {[%emt 0:00:59]} 40. g3 {[%emt 0:02:09]} e4 {[%emt 0:03:34]} 41. Rf2+ {[%emt 0:09:44]} Ke5 {[%emt 0:02:08]} 42. Rf8 {[%emt 0:08:19]} Rd2 {[%emt 0:02:14]} 43. Re8+ {[%emt 0:08:10]} Kf5 {[%emt 0:00:20]} 44. Rf8+ {[%emt 0:00:07]} Ke5 {[%emt 0:00:12]} 45. Re8+ {[%emt 0:00:03]} Kf5 {[%emt 0:00:07]} 46. Rf8+ {[%emt 0:00:29]} Ke5 {[%emt 0:00:44]} 47. Kc5 {[%emt 0:03:23]} Rxh2 {[%emt 0:00:19]} 48. Kxc6 {[%emt 0:01:02]} Rc2 {[%emt 0:01:59]} 49. Re8+ {[%emt 0:00:05]} Kf5 {[%emt 0:00:05]} 50. Rf8+ {[%emt 0:00:18]} Ke5 {[%emt 0:00:06]} 51. Re8+ {[%emt 0:00:01]} Kf5 {[%emt 0:00:11]} 52. Kb6 {[%emt 0:03:12]} Rxc3 {[%emt 0:00:20]} 53. Kxa6 {[%emt 0:00:05]} Rxg3 {[%emt 0:01:49]} 54. b5 {[%emt 0:00:23]} Rb3 {[%emt 0:00:19]} 55. b6 {[%emt 0:01:01]} e3 {[%emt 0:00:12]} 56. b7 {[%emt 0:00:44]} Kf4 {[%emt 0:00:10]} 57. Re6 {[%emt 0:01:08]} Kf3 {[%emt 0:00:40]} 58. Rb6 {[%emt 0:00:45]} Rxb6+ {[%emt 0:00:06]} 59. Kxb6 {[%emt 0:00:04]} e2 {[%emt 0:00:05]} 60. b8=Q {[%emt 0:00:16]} e1=Q {[%emt 0:00:06]} 61. Qf8+ {[%emt 0:00:29]} Kg4 {[%emt 0:00:55]} 62. Qxg7+ {[%emt 0:00:08]} Kh5 {[%emt 0:01:09]} 63. Qf7+ {[%emt 0:00:14]} Kg5 {[%emt 0:00:20]} 64. Qd5+ {[%emt 0:00:08]} Kf6 {[%emt 0:00:33]} 65. Qc6+ {[%emt 0:00:20]} Kf7 {[%emt 0:00:37]} 66. a5 {[%emt 0:01:21]} Qe3+ {[%emt 0:00:27]} 67. Kb7 {[%emt 0:00:49]} Qb3+ {[%emt 0:00:30]} 68. Ka8 {[%emt 0:01:04]} Ke7 {[%emt 0:00:41]} 69. Qb7+ {[%emt 0:00:09]} 1-0

[Event "EYTCC U18 Girls 2019"]
[Site "Pardubice"]
[Date "2019.07.17"]
[Round "7.42"]
[White "Gresova, Zuzana"]
[Black "Rahulan, Thivyaa"]
[Result "1-0"]
[ECO "A85"]
[WhiteElo "1919"]
[BlackElo "1878"]
[Annotator "NA"]
[PlyCount "113"]
[EventDate "2019.07.11"]
[EventType "swiss"]
[EventCountry "CZE"]
[SourceTitle "playchess.com"]
[Source "ChessBase"]
[SourceQuality "1"]
[WhiteTeam "Czech Republic"]
[BlackTeam "England"]
[WhiteTeamCountry "CZE"]
[BlackTeamCountry "ENG"]
[TimeControl "40/5400+30:1800+30"]

1. d4 {[%emt 0:00:00]} f5 {[%emt 0:00:00]} 2. c4 {[%emt 0:00:00]} Nf6 {[%emt 0:00:36]} 3. Nc3 {[%emt 0:00:25]} g6 {[%emt 0:00:57]} 4. h4 {[%emt 0:01:40]} h6 {[%emt 0:14:42]} 5. Nh3 {[%emt 0:02:39]} Nh5 {[%emt 0:03:42]} 6. e4 {[%emt 0:08:10]} e6 {[%emt 0:07:45]} 7. Nf4 {[%emt 0:04:22]} Nxf4 {[%emt 0:00:58]} 8. Bxf4 {[%emt 0:00:17]} d6 {[%emt 0:04:45]} 9. Qd2 {[%emt 0:06:26]} Bg7 {[%emt 0:14:08]} 10. O-O-O {[%emt 0:06:33]} Bd7 {[%emt 0:14:35]} 11. Re1 {[%emt 0:06:09]} Kf7 {[%emt 0:04:19]} 12. exf5 {[%emt 0:07:39]} exf5 {[%emt 0:03:09]} 13. d5 {[%emt 0:05:04]} Qf6 {[%emt 0:03:19]} 14. c5 {[%emt 0:09:44]} Na6 {[%emt 0:05:29]} 15. cxd6 {[%emt 0:04:32]} cxd6 {[%emt 0:00:13]} 16. Bb5 {[%emt 0:01:07]} Rhd8 {[%emt 0:09:00]} 17. Bxd7 {[%emt 0:05:05]} Rxd7 {[%emt 0:00:25]} 18. Re6 {[%emt 0:02:19]} Qd4 {[%emt 0:00:25]} 19. Bxh6 {[%emt 0:02:31]} Qxd2+ {[%emt 0:00:34]} 20. Bxd2 {[%emt 0:02:40]} Nc7 {[%emt 0:00:21]} 21. Ree1 {[%emt 0:01:43]} Bxc3 {[%emt 0:00:58]} 22. bxc3 {[%emt 0:01:10]} Nxd5 {[%emt 0:00:41]} 23. h5 {[%emt 0:01:08]} Nf6 {[%emt 0:08:40]} 24. hxg6+ {[%emt 0:01:05]} Kxg6 {[%emt 0:00:09]} 25. Rh6+ {[%emt 0:01:08]} Kf7 {[%emt 0:01:26]} 26. f3 {[%emt 0:01:10]} Rg8 {[%emt 0:00:11]} 27. Re2 {[%emt 0:00:41]} b6 {[%emt 0:00:55]} 28. Kb2 {[%emt 0:00:35]} Rdd8 {[%emt 0:00:25]} 29. Bf4 {[%emt 0:06:01]} Rg7 {[%emt 0:01:02]} 30. Rd2 {[%emt 0:01:05]} d5 {[%emt 0:00:39]} 31. Be5 {[%emt 0:01:29]} Rg6 {[%emt 0:00:05]} 32. Rh4 {[%emt 0:00:36]} Rdg8 {[%emt 0:00:40]} 33. g3 {[%emt 0:00:45]} Rd8 {[%emt 0:00:07]} 34. Rhd4 {[%emt 0:05:47]} Ke6 {[%emt 0:01:07]} 35. Re2 {[%emt 0:00:41]} Kf7 {[%emt 0:00:23]} 36. c4 {[%emt 0:00:51]} Rd7 {[%emt 0:00:26]} 37. Red2 {[%emt 0:01:13]} Ke6 {[%emt 0:00:21]} 38. Bxf6 {[%emt 0:01:16]} Kxf6 {[%emt 0:00:06]} 39. g4 {[%emt 0:00:16]} fxg4 {[%emt 0:00:09]} 40. fxg4 {[%emt 0:00:16]} Rg5 {[%emt 0:00:29]} 41. cxd5 {[%emt 0:32:30]} Rd6 {[%emt 0:02:10]} 42. Kc3 {[%emt 0:00:00]} Rg8 {[%emt 0:02:42]} 43. Rh2 {[%emt 0:00:00]} Kg6 {[%emt 0:01:59]} 44. Kd3 {[%emt 0:00:00]} Rgd8 {[%emt 0:03:01]} 45. Rh5 {[%emt 0:00:00]} R6d7 {[%emt 0:01:52]} 46. Re5 {[%emt 0:00:00]} Rd6 {[%emt 0:00:59]} 47. Ke4 {[%emt 0:00:00]} Kf6 {[%emt 0:03:34]} 48. Rd3 {[%emt 0:00:00]} R8d7 {[%emt 0:04:06]} 49. Rh3 {[%emt 0:00:00]} Kg6 {[%emt 0:01:41]} 50. Rc3 {[%emt 0:00:00]} Kf7 {[%emt 0:01:17]} 51. Rd3 {[%emt 0:00:00]} Kf6 {[%emt 0:02:54]} 52. Kd4 {[%emt 0:00:00]} Rd8 {[%emt 0:01:16]} 53. Rde3 {[%emt 0:00:00]} R8d7 {[%emt 0:00:43]} 54. Re6+ {[%emt 0:00:00]} Rxe6 {[%emt 0:00:19]} 55. Rxe6+ {[%emt 0:00:00]} Kf7 {[%emt 0:01:05]} 56. Ke5 {[%emt 0:00:00]} Rd8 {[%emt 0:00:24]} 57. d6 {[%emt 0:00:10]} 1-0